bitfinex-derivatives/quotes_SOLF0:USTF0_20260213
["timestamp","ask_amount","ask_price","bid_price","bid_amount"]
[1770949046741,5.38594087,78.709,78.666,11.4493]
[1770949047643,3.30667846,78.72,78.671,5.37416184]
[1770949047842,8.69261933,78.72,78.671,5.37416184]
[1770949048043,5.38594087,78.719,78.671,5.37416184]
[1770949048840,11.4406,78.727,78.672,5.37416184]
[1770949049047,11.4406,78.727,78.681,5.37416184]
[1770949049641,11.4406,78.727,78.684,5.37416184]
[1770949052239,16.57426321,78.727,78.684,5.37416184]
[1770949052444,5.13366321,78.724,78.684,5.37416184]
[1770949053545,3.30667846,78.72,78.674,11.448]
[1770949053951,5.27968615,78.719,78.674,11.448]
[1770949054146,5.27968615,78.709,78.666,11.4493]
[1770949054547,5.27968615,78.721,78.67,3.30667846]
[1770949054744,3.30667846,78.72,78.671,5.40318321]
[1770949055248,3.30667846,78.73,78.681,5.40318321]
[1770949055549,5.27968615,78.734,78.681,5.40318321]
[1770949056749,16.71918615,78.734,78.686,5.40318321]
[1770949056953,5.27968615,78.733,78.686,5.40318321]
[1770949057857,5.27968615,78.733,78.689,11.4459]
[1770949058657,3.30667846,78.73,78.689,11.4459]
[1770949058858,5.27968615,78.729,78.689,11.4459]
[1770949060963,5.27968615,78.727,78.686,5.40318321]
[1770949062561,3.30667846,78.72,78.673,5.40318321]
[1770949062763,5.27968615,78.719,78.673,5.40318321]
[1770949063157,5.27968615,78.709,78.67,11.4487]
[1770949064256,11.72098337,78.753,78.66,3.30667846]
[1770949064257,5.27968615,78.717,78.674,5.40318321]
[1770949065167,5.27968615,78.717,78.678,11.4475]
[1770949066361,5.27968615,78.717,78.685,11.4464]
[1770949066568,5.27968615,78.734,78.686,5.40318321]
[1770949067767,5.27968615,78.734,78.693,11.4453]
[1770949068663,8.58636461,78.73,78.686,5.40318321]
[1770949069265,5.27968615,78.729,78.686,5.40318321]
[1770949069669,3.30667846,78.72,78.686,5.40318321]
[1770949070869,16.72068615,78.723,78.686,5.40318321]
[1770949071969,5.27968615,78.722,78.686,5.40318321]
[1770949073267,5.27968615,78.722,78.68,11.4472]
[1770949073874,3.30667846,78.72,78.68,11.4472]
[1770949074066,5.27968615,78.719,78.68,11.4472]
[1770949075770,11.84177973,78.737,78.688,5.40318321]
[1770949075968,3.30667846,78.74,78.688,5.40318321]
[1770949076167,8.58636461,78.74,78.688,5.40318321]
[1770949076373,5.27968615,78.739,78.688,5.40318321]
[1770949076769,5.27968615,78.737,78.693,5.40318321]
[1770949079777,16.72158615,78.718,78.675,5.40318321]
[1770949079976,5.27968615,78.717,78.675,5.40318321]
[1770949080402,11.84177973,78.733,78.654,15.52953709]
[1770949080403,4.93095023,78.705,78.654,15.52953709]
[1770949080681,4.93095023,78.689,78.649,5.01000722]
[1770949081285,4.93095023,78.688,78.64,11.453]
[1770949081486,3.30667846,78.68,78.64,11.453]
[1770949082190,4.93095023,78.679,78.64,11.453]
[1770949082787,3.30667846,78.67,78.637,5.01000722]
[1770949083887,3.30667846,78.67,78.63,11.4545]
[1770949085991,3.30667846,78.66,78.625,5.01000722]
[1770949086384,4.93095023,78.659,78.621,11.4558]
[1770949086785,4.93095023,78.657,78.613,5.01000722]
[1770949086983,3.30667846,78.65,78.601,5.01000722]
[1770949087289,4.93095023,78.655,78.601,5.01000722]
[1770949087596,4.93095023,78.655,78.611,5.01000722]
[1770949087888,3.30667846,78.65,78.611,5.01000722]
[1770949088093,4.93095023,78.649,78.6,3.30667846]
[1770949088394,3.30667846,78.64,78.599,5.01000722]
[1770949090494,4.93095023,78.648,78.599,5.01000722]
[1770949090694,4.93095023,78.648,78.601,5.01000722]
[1770949090991,8.23762869,78.66,78.611,5.01000722]
[1770949091490,3.30667846,78.67,78.622,5.01000722]
[1770949091797,4.93095023,78.649,78.608,5.01000722]
[1770949092891,4.93095023,78.639,78.596,5.01000722]
[1770949094798,4.93095023,78.639,78.599,11.459]
[1770949097801,4.93095023,78.639,78.599,16.46900722]
[1770949100195,4.93095023,78.639,78.603,5.01000722]
[1770949100396,3.30667846,78.65,78.603,5.01000722]
[1770949100595,4.93095023,78.649,78.603,5.01000722]
[1770949101594,3.30667846,78.65,78.583,101.48]
[1770949101595,11.4508,78.656,78.611,5.18068465]
[1770949101796,5.1882127,78.655,78.611,5.18068465]
[1770949101998,3.30667846,78.66,78.611,5.18068465]
[1770949101999,11.4511,78.654,78.611,5.18068465]
[1770949102198,5.1882127,78.639,78.598,5.18068465]
[1770949103202,5.1882127,78.639,78.601,11.4587]
[1770949104504,5.1882127,78.639,78.601,16.63938465]
[1770949105206,5.1882127,78.639,78.605,11.4582]
[1770949105503,5.1882127,78.639,78.605,16.63888465]
[1770949107805,5.1882127,78.639,78.605,5.18068465]
[1770949111503,5.1882127,78.639,78.607,11.4578]
[1770949111807,5.1882127,78.639,78.607,16.46134601]
[1770949112601,5.1882127,78.639,78.608,5.00354601]
[1770949112804,4.95596631,78.651,78.612,5.00354601]
[1770949113805,4.95596631,78.651,78.615,4.78895238]
[1770949114806,4.95596631,78.651,78.59,101.52]
[1770949114807,11.4492,78.667,78.622,4.78895238]
[1770949115007,4.91588118,78.673,78.631,4.78895238]
[1770949115204,4.91588118,78.685,78.646,4.78895238]
[1770949117409,11.4465,78.686,78.634,4.87606129]
[1770949117410,5.08870961,78.679,78.634,4.87606129]
[1770949118106,5.08870961,78.678,78.634,16.32996129]
[1770949118310,341.91888443,78.696,78.598,101.52]
[1770949118311,3.31523016,78.69,78.641,4.87606129]
[1770949118503,5.08870961,78.693,78.641,4.87606129]
[1770949119008,11.4455,78.692,78.645,4.87606129]
[1770949119405,5.08870961,78.691,78.645,4.87606129]
[1770949119600,3.31523016,78.69,78.645,4.87606129]
[1770949119909,5.08870961,78.679,78.63,3.31523016]
[1770949120503,5.08870961,78.679,78.621,4.87606129]
[1770949120703,5.08870961,78.669,78.621,4.87606129]
[1770949121697,5.08870961,78.667,78.623,11.4555]
[1770949121903,5.08870961,78.667,78.624,4.87606129]
[1770949123704,5.08870961,78.667,78.626,4.87606129]
[1770949129001,5.08870961,78.667,78.628,4.87606129]
[1770949134318,5.08870961,78.663,78.618,16.33226129]
[1770949134720,5.08870961,78.663,78.61,3.31523016]
[1770949134721,5.08870961,78.663,78.619,4.87606129]
[1770949135714,5.08870961,78.663,78.622,11.4556]
[1770949136716,5.08870961,78.663,78.622,16.33166129]
[1770949138123,5.08870961,78.663,78.623,4.87606129]
[1770949138721,5.08870961,78.663,78.625,11.4552]
[1770949138922,149.26,78.676,78.631,4.87606129]
[1770949139123,154.34870961,78.676,78.631,4.87606129]
[1770949139424,5.08870961,78.675,78.635,11.4538]
[1770949140420,5.08870961,78.675,78.636,4.82589661]
[1770949141523,4.59832737,78.674,78.636,4.82589661]
[1770949142425,4.59832737,78.673,78.636,4.82589661]
[1770949142625,4.59832737,78.673,78.638,4.82589661]
[1770949143024,4.59832737,78.686,78.641,4.82589661]
[1770949143728,4.59832737,78.686,78.647,4.82589661]
[1770949144823,3.31523016,78.69,78.649,4.82589661]
[1770949145217,4.59832737,78.689,78.635,4.82589661]
[1770949145417,4.59832737,78.676,78.635,4.82589661]
[1770949146029,4.59832737,78.676,78.63,3.31523016]
[1770949146030,4.59832737,78.676,78.644,4.82589661]
[1770949147830,4.59832737,78.676,78.645,11.4523]
[1770949150230,155.21832737,78.687,78.647,16.27789661]
[1770949150428,155.21832737,78.687,78.648,4.82589661]
[1770949151932,4.59832737,78.686,78.648,4.82589661]
[1770949155430,4.59832737,78.686,78.65,4.82589661]
[1770949155931,3.31523016,78.67,78.639,4.82589661]
[1770949156126,4.59832737,78.679,78.639,4.82589661]
[1770949157824,4.59832737,78.679,78.641,4.82589661]
[1770949158733,4.59832737,78.679,78.642,16.27869661]
[1770949160132,4.59832737,78.679,78.644,11.4525]
[1770949162229,4.59832737,78.679,78.612,101.5]
[1770949162230,4.59832737,78.669,78.634,11.4539]
[1770949162632,4.59832737,78.659,78.611,4.82589661]
[1770949163934,4.59832737,78.659,78.623,11.4554]
[1770949164331,4.59832737,78.649,78.6,8.13949358]
[1770949164536,4.59832737,78.649,78.601,4.82589661]
[1770949165231,4.59832737,78.649,78.6,3.31359697]
[1770949165232,4.59832737,78.649,78.618,11.4562]
[1770949165632,4.59832737,78.649,78.618,16.28209661]
[1770949166133,4.59832737,78.649,78.6,3.31359697]
[1770949166134,4.59832737,78.665,78.624,4.82589661]
[1770949166328,153.13359697,78.67,78.624,4.82589661]
[1770949166329,3.31359697,78.67,78.624,4.82589661]
[1770949166533,22.882,78.724,78.624,4.82589661]
[1770949166534,4.59832737,78.677,78.624,4.82589661]
[1770949167829,4.59832737,78.677,78.633,4.82589661]
[1770949168530,4.59832737,78.677,78.635,4.82589661]
[1770949171330,4.59832737,78.677,78.638,4.46075216]
[1770949172643,7.74330871,78.67,78.638,4.46075216]
[1770949173140,4.42971174,78.669,78.638,4.46075216]
[1770949173735,4.42971174,78.669,78.63,4.57643113]
[1770949174436,4.42971174,78.669,78.632,11.4542]
[1770949174741,4.73653795,78.674,78.633,4.57643113]
[1770949175743,3.31359697,78.67,78.633,4.57643113]
[1770949175942,4.73653795,78.669,78.633,4.57643113]
[1770949176442,4.73653795,78.669,78.634,16.03033113]
[1770949177239,4.73653795,78.668,78.618,4.57643113]
[1770949178742,4.73653795,78.666,78.621,4.57643113]
[1770949179846,4.73653795,78.666,78.623,4.57643113]
[1770949180239,4.73653795,78.659,78.623,4.57643113]
[1770949181247,4.73653795,78.649,78.614,11.4568]
[1770949182443,4.73653795,78.649,78.611,4.57643113]
[1770949187456,3.31359697,78.64,78.611,4.57643113]
[1770949188056,4.73653795,78.639,78.606,11.458]
[1770949188462,3.31359697,78.63,78.6,4.57643113]
[1770949189558,4.73653795,78.639,78.6,4.57643113]
[1770949189758,4.73653795,78.639,78.601,16.03513113]
[1770949189956,4.73653795,78.639,78.602,4.57643113]
[1770949190766,4.73653795,78.639,78.603,16.03473113]
[1770949191966,4.73653795,78.639,78.58,502.2668715]
[1770949192275,23.52356311,78.683,78.577,4.57643113]
[1770949192276,4.73653795,78.619,78.577,4.57643113]
[1770949192862,3.31359697,78.61,78.577,4.57643113]
[1770949193864,3.31359697,78.6,78.566,4.57643113]
[1770949194063,8.05013492,78.6,78.566,4.57643113]
[1770949194466,4.73653795,78.589,78.554,4.57643113]
[1770949195771,3.31359697,78.58,78.554,4.57643113]
[1770949196063,4.73653795,78.589,78.554,4.57643113]
[1770949197071,4.73653795,78.589,78.541,4.57643113]
[1770949198977,3.31359697,78.61,78.561,4.57643113]
[1770949199368,8.05013492,78.61,78.561,4.57643113]
[1770949199568,4.73653795,78.609,78.561,4.57643113]
[1770949199774,4.73653795,78.609,78.562,4.57643113]
[1770949200371,3.31359697,78.63,78.581,4.37721842]
[1770949201571,4.58257226,78.629,78.581,4.37721842]
[1770949201771,4.58257226,78.619,78.572,4.37721842]
[1770949202275,4.58257226,78.619,78.575,4.37721842]
[1770949203782,4.58257226,78.619,78.577,4.37721842]
[1770949204580,4.58257226,78.619,78.579,4.37721842]
[1770949204770,3.31359697,78.63,78.58,3.31359697]
[1770949204977,4.58257226,78.643,78.591,4.37721842]
[1770949205173,3.31359697,78.64,78.591,4.37721842]
[1770949206180,4.58257226,78.639,78.591,4.37721842]
[1770949206380,4.58257226,78.637,78.591,4.37721842]
[1770949209079,3.31359697,78.63,78.591,4.37721842]
[1770949209286,7.89616923,78.63,78.591,4.37721842]
[1770949210083,4.58257226,78.629,78.591,4.37721842]
[1770949210485,4.58257226,78.629,78.584,11.4611]
[1770949210981,4.58257226,78.619,78.578,4.37721842]
[1770949212581,4.58257226,78.609,78.568,11.4635]
[1770949212984,4.58257226,78.609,78.566,4.37721842]
[1770949214979,4.58257226,78.606,78.566,4.37721842]
[1770949218589,3.31359697,78.6,78.566,4.37721842]
[1770949218790,4.58257226,78.599,78.566,4.37721842]
[1770949221389,3.31359697,78.59,78.549,11.4663]
[1770949221590,4.58257226,78.589,78.549,11.4663]
[1770949221991,4.58257226,78.587,78.544,4.37721842]
[1770949224403,11.4594,78.597,78.553,4.37721842]
[1770949224896,4.58257226,78.596,78.553,4.37721842]
[1770949229301,3.31880107,78.59,78.553,4.37721842]
[1770949230392,4.58257226,78.59,78.553,4.37721842]
[1770949232507,4.33636797,78.589,78.553,4.37721842]
[1770949233003,4.33636797,78.588,78.553,4.37721842]
[1770949235302,4.40766046,78.599,78.553,4.37721842]
[1770949236506,4.40766046,78.597,78.555,4.17438775]
[1770949237309,4.40766046,78.589,78.555,4.17438775]
[1770949237607,4.40766046,78.587,78.545,15.64128775]
[1770949237803,4.40766046,78.587,78.546,4.17438775]
[1770949239702,11.4611,78.585,78.546,4.17438775]
[1770949239903,15.86876046,78.585,78.546,4.17438775]
[1770949240611,4.40766046,78.581,78.546,4.17438775]
[1770949244311,4.40766046,78.581,78.534,4.17438775]
[1770949244514,4.40766046,78.569,78.524,4.17438775]
[1770949245814,4.40766046,78.567,78.524,4.17438775]
[1770949246019,4.40766046,78.559,78.524,4.17438775]
[1770949246421,4.40766046,78.549,78.508,11.4723]
[1770949247424,4.40766046,78.549,78.508,15.64668775]
[1770949249526,4.40766046,78.558,78.517,4.17438775]
[1770949250026,11.88059906,78.593,78.493,2.21593948]
[1770949250027,4.40766046,78.583,78.531,4.17438775]
[1770949250220,4.40766046,78.572,78.531,4.17438775]
[1770949250422,4.40766046,78.569,78.52,3.31880107]
[1770949250724,4.40766046,78.569,78.521,4.17438775]
[1770949251726,15.87116046,78.569,78.522,11.4702]
[1770949251929,15.87116046,78.569,78.523,4.17438775]
[1770949252425,4.40766046,78.568,78.523,4.17438775]
[1770949252932,4.40766046,78.568,78.525,4.17438775]
[1770949253223,4.05376717,78.566,78.525,4.17438775]
[1770949257430,4.05376717,78.566,78.527,4.15942565]
[1770949258531,4.05376717,78.559,78.517,11.4709]
[1770949258730,4.05376717,78.559,78.517,15.63032565]
[1770949258931,4.05376717,78.559,78.518,4.15942565]
[1770949259732,4.05376717,78.559,78.52,4.15942565]
[1770949260334,4.05376717,78.549,78.501,4.15942565]
[1770949261737,4.05376717,78.549,78.504,4.29170202]
[1770949262842,4.05376717,78.549,78.509,11.4721]
[1770949263435,4.13528455,78.545,78.504,4.29170202]
[1770949263636,4.13528455,78.529,78.482,4.29170202]
[1770949264141,4.13528455,78.519,78.482,4.29170202]
[1770949264541,4.13528455,78.519,78.475,11.477]
[1770949265437,4.13528455,78.509,78.458,4.29170202]
[1770949265640,4.13528455,78.509,78.463,4.29170202]
[1770949266035,101.62,78.54,78.454,11.4801]
[1770949266036,4.13528455,78.499,78.454,11.4801]
[1770949266539,4.13528455,78.499,78.454,15.77180202]
[1770949266739,4.13528455,78.499,78.457,11.4797]
[1770949267530,4.13528455,78.499,78.455,4.29170202]
[1770949269137,4.13528455,78.499,78.427,15.69025202]
[1770949269138,4.13528455,78.479,78.431,4.29170202]
[1770949269339,4.13528455,78.469,78.431,4.29170202]
[1770949269639,3.31880107,78.46,78.414,4.29170202]
[1770949269839,3.31880107,78.46,78.417,4.29170202]
[1770949270236,4.13528455,78.459,78.417,4.29170202]
[1770949271238,4.13528455,78.469,78.421,4.29170202]
[1770949273241,4.13528455,78.469,78.43,3.31880107]
[1770949273439,4.13528455,78.469,78.431,4.29170202]
[1770949274438,4.13528455,78.485,78.441,4.29170202]
[1770949275340,11.4756,78.486,78.441,4.29170202]
[1770949275341,7.45408562,78.48,78.441,4.29170202]
[1770949275939,4.13528455,78.48,78.441,4.29170202]
[1770949276643,4.13528455,78.479,78.43,3.31880107]
[1770949276842,4.13528455,78.479,78.431,4.29170202]
[1770949277643,4.13528455,78.479,78.44,3.31880107]
[1770949280837,4.13528455,78.479,78.434,4.29170202]
[1770949282352,4.13528455,78.479,78.436,4.29170202]
[1770949290656,4.13528455,78.479,78.438,11.4826]
[1770949290963,4.13528455,78.479,78.439,4.11827307]
[1770949291654,4.13528455,78.479,78.442,4.11827307]
[1770949291854,4.07636464,78.491,78.442,4.11827307]
[1770949292456,4.07636464,78.491,78.445,4.11827307]
[1770949292652,4.07636464,78.479,78.43,3.32850831]
[1770949293058,4.07636464,78.479,78.428,4.11827307]
[1770949293458,4.07636464,78.479,78.43,3.32850831]
[1770949293754,4.07636464,78.479,78.432,15.81065618]
[1770949295259,4.07636464,78.479,78.432,11.4833]
[1770949295457,4.07636464,78.479,78.43,3.32850831]
[1770949295458,4.07636464,78.479,78.435,11.483]
[1770949295662,4.07636464,78.479,78.436,4.32735618]
[1770949296152,4.07636464,78.479,78.438,11.4826]
[1770949296356,4.07636464,78.479,78.436,4.32735618]
[1770949296960,11.4767,78.478,78.436,4.32735618]
[1770949297160,3.94097216,78.477,78.436,4.32735618]
[1770949299650,3.94097216,78.469,78.428,11.484]
[1770949299855,3.94097216,78.459,78.41,3.32850831]
[1770949300451,3.94097216,78.459,78.409,4.32735618]
[1770949300858,3.94097216,78.456,78.409,4.32735618]
[1770949301060,3.94097216,78.449,78.409,4.32735618]
[1770949301356,178.4665,78.505,78.393,2.21872978]
[1770949301357,7.26948047,78.46,78.413,4.32735618]
[1770949301550,3.32850831,78.47,78.421,4.32735618]
[1770949301757,3.94097216,78.472,78.43,3.32850831]
[1770949301968,3.32850831,78.48,78.431,4.32735618]
[1770949302870,11.4767,78.478,78.431,4.32735618]
[1770949303170,3.32850831,78.49,78.441,4.32735618]
[1770949303361,3.94097216,78.489,78.441,4.32735618]
[1770949303563,3.94097216,78.48,78.441,4.32735618]
[1770949303867,7.26948047,78.48,78.441,4.32735618]
[1770949305365,11.4741,78.496,78.441,4.32735618]
[1770949305565,3.94097216,78.495,78.451,4.32735618]
[1770949305858,3.32850831,78.49,78.451,4.32735618]
[1770949306766,3.94097216,78.495,78.451,4.32735618]
[1770949306767,11.4744,78.494,78.451,4.32735618]
[1770949307058,3.94097216,78.495,78.451,4.32735618]
[1770949307455,3.94097216,78.495,78.417,15.69025202]
[1770949307456,3.94097216,78.518,78.471,4.32735618]
[1770949307658,191.14808458,78.52,78.471,4.32735618]
[1770949307855,3.94097216,78.543,78.493,4.32735618]
[1770949308160,152.86,78.551,78.501,4.32735618]
[1770949308354,3.94097216,78.555,78.501,4.32735618]
[1770949308556,3.94097216,78.555,78.505,4.32735618]
[1770949308756,178.2509,78.6,78.474,101.74]
[1770949308757,3.94097216,78.552,78.491,4.32735618]
[1770949308954,3.94097216,78.569,78.511,4.32735618]
[1770949309157,3.94097216,78.567,78.52,3.32850831]
[1770949310071,3.94097216,78.567,78.52,7.65586449]
[1770949310759,11.88059906,78.608,78.483,101.74]
[1770949310760,3.94097216,78.563,78.492,4.32735618]
[1770949310959,3.94097216,78.563,78.521,4.32735618]
[1770949311159,3.32850831,78.56,78.521,4.32735618]
[1770949311356,3.94097216,78.539,78.495,4.32735618]
[1770949311557,3.94097216,78.529,78.481,4.32735618]
[1770949312966,3.32850831,78.55,78.5,3.32850831]
[1770949313167,3.32850831,78.55,78.501,4.32735618]
[1770949315761,3.32850831,78.55,78.503,4.32735618]
[1770949316767,3.94097216,78.556,78.505,4.32735618]
[1770949317272,3.32850831,78.55,78.505,4.32735618]
[1770949317663,7.26948047,78.55,78.505,4.32735618]
[1770949319170,3.94097216,78.549,78.505,4.32735618]
[1770949320374,3.32850831,78.54,78.505,4.32735618]
[1770949320965,3.94097216,78.549,78.505,4.32735618]
[1770949321167,3.32850831,78.57,78.511,4.05252087]
[1770949321372,3.32850831,78.56,78.521,4.05252087]
[1770949322268,7.45719976,78.56,78.521,4.05252087]
[1770949323872,3.32850831,78.56,78.521,4.05252087]
[1770949324074,3.32850831,78.57,78.521,4.05252087]
[1770949324874,3.32850831,78.57,78.523,4.05252087]
[1770949325070,4.12869145,78.573,78.523,4.05252087]
[1770949325071,4.12869145,78.573,78.53,3.32850831]
[1770949325377,3.32850831,78.58,78.542,4.05252087]
[1770949327182,7.45719976,78.58,78.542,4.05252087]
[1770949328477,7.45719976,78.58,78.544,11.4671]
[1770949328676,7.45719976,78.58,78.545,4.05252087]
[1770949330171,4.12869145,78.58,78.545,4.05252087]
[1770949330478,3.32850831,78.59,78.55,4.05252087]
[1770949330780,4.12869145,78.592,78.55,4.05252087]
[1770949331080,3.32850831,78.6,78.55,4.05252087]
[1770949331981,3.32850831,78.61,78.552,4.05252087]
[1770949332184,4.12869145,78.609,78.561,4.05252087]
[1770949333883,4.12869145,78.609,78.561,15.51702087]
[1770949334282,4.12869145,78.609,78.562,4.05252087]
[1770949335582,4.12869145,78.609,78.564,11.4641]
[1770949335770,346.32856581,78.636,78.531,101.64]
[1770949335771,4.12869145,78.622,78.571,4.05252087]
[1770949335976,4.12869145,78.622,78.581,4.05252087]
[1770949336879,4.12869145,78.622,78.581,15.51412087]
[1770949337669,4.12869145,78.622,78.582,4.05252087]
[1770949339079,4.12869145,78.635,78.591,4.05252087]
[1770949340778,4.12869145,78.635,78.591,11.4602]
[1770949342284,4.12869145,78.635,78.592,4.05252087]
[1770949342482,4.12869145,78.66,78.595,4.05252087]
[1770949342684,4.12869145,78.665,78.61,3.32850831]
[1770949342879,4.12869145,78.663,78.61,3.32850831]
[1770949343081,4.12869145,78.659,78.61,3.32850831]
[1770949343885,4.12869145,78.659,78.613,11.4569]
[1770949344690,4.12869145,78.659,78.613,15.50942087]
[1770949345385,4.12869145,78.659,78.618,11.4563]
[1770949345789,4.12869145,78.659,78.614,4.05252087]
[1770949346388,4.12869145,78.649,78.61,11.4574]
[1770949348093,4.12869145,78.649,78.611,4.05252087]
[1770949350495,4.12869145,78.649,78.612,11.4571]
[1770949350689,4.12869145,78.649,78.613,3.97989494]
[1770949351790,4.12869145,78.649,78.614,11.4568]
[1770949352192,4.12869145,78.649,78.614,15.43669494]
[1770949353200,4.12869145,78.649,78.614,3.97989494]
[1770949354398,4.14053317,78.639,78.602,11.4586]
[1770949354598,4.14053317,78.629,78.586,4.00929393]
[1770949354999,3.31363764,78.62,78.586,4.00929393]
[1770949355498,4.14053317,78.619,78.579,11.4619]
[1770949356101,101.54,78.635,78.571,4.00929393]
[1770949356102,4.14053317,78.609,78.571,4.00929393]
[1770949356411,4.14053317,78.599,78.559,4.00929393]
[1770949357804,4.14053317,78.599,78.559,15.47409393]
[1770949360408,4.14053317,78.599,78.561,15.47379393]
[1770949362922,4.14053317,78.599,78.562,4.00929393]
[1770949363606,4.14053317,78.599,78.564,11.4641]
[1770949365497,4.14053317,78.599,78.564,15.47339393]
[1770949367012,4.14053317,78.599,78.569,11.4634]
[1770949367401,4.14053317,78.599,78.565,4.00929393]
[1770949370714,4.14053317,78.599,78.566,11.4638]
[1770949371314,4.14053317,78.599,78.565,4.00929393]
[1770949372521,4.14053317,78.589,78.554,4.00929393]
[1770949373018,4.14053317,78.589,78.539,4.00929393]
[1770949373323,4.14053317,78.579,78.539,4.00929393]
[1770949374019,3.31363764,78.58,78.541,4.00929393]
[1770949374220,3.31363764,78.6,78.541,4.00929393]
[1770949374618,4.14053317,78.599,78.541,4.00929393]
[1770949375717,15.59963317,78.599,78.551,11.466]
[1770949375917,15.59963317,78.599,78.552,4.00929393]
[1770949376822,15.59963317,78.599,78.556,4.00929393]
[1770949377521,4.14053317,78.598,78.556,4.00929393]
[1770949377721,3.31363764,78.59,78.556,4.00929393]
[1770949378719,3.31363764,78.59,78.558,15.47419393]
[1770949379023,3.31363764,78.59,78.559,4.00929393]
[1770949380419,3.31363764,78.59,78.56,11.4647]
[1770949380618,3.31363764,78.59,78.56,15.3211453]
[1770949380815,11.80528389,78.642,78.56,15.3211453]
[1770949380816,3.31363764,78.62,78.561,3.8564453]
[1770949381021,4.1329478,78.619,78.591,11.4602]
[1770949381932,3.31363764,78.63,78.592,3.8564453]
[1770949382127,3.31363764,78.63,78.595,15.3160453]
[1770949383423,3.31363764,78.65,78.599,3.8564453]
[1770949383623,4.1329478,78.65,78.601,3.8564453]
[1770949384020,4.1329478,78.65,78.584,101.58]
[1770949384021,4.1329478,78.663,78.616,3.8564453]
[1770949384328,4.1329478,78.639,78.592,3.8564453]
[1770949385820,4.1329478,78.639,78.599,11.459]
[1770949390029,4.1329478,78.639,78.6,3.8564453]
[1770949394628,4.1329478,78.639,78.601,11.4587]
[1770949395230,4.1329478,78.639,78.601,15.3151453]
[1770949395432,4.1329478,78.639,78.604,3.8564453]
[1770949395935,4.1329478,78.639,78.605,15.3145453]
[1770949396134,4.1329478,78.639,78.605,3.8564453]
[1770949410155,4.1329478,78.639,78.608,11.4577]
[1770949412746,4.1329478,78.639,78.605,3.8564453]
[1770949412946,4.1329478,78.639,78.601,11.4587]
[1770949413354,4.1329478,78.639,78.604,11.4582]
[1770949416459,4.1329478,78.639,78.604,15.58117012]
[1770949416658,4.1329478,78.639,78.605,4.12297012]
[1770949420665,4.1329478,78.639,78.607,11.4578]
[1770949421865,4.1329478,78.639,78.608,4.12297012]
[1770949423674,4.1329478,78.639,78.598,4.12297012]
[1770949424775,4.0066184,78.629,78.598,4.12297012]
[1770949428071,4.0066184,78.619,78.583,11.4614]
[1770949428278,4.0066184,78.619,78.572,4.12297012]
[1770949428871,4.0066184,78.609,78.572,15.58587012]
[1770949429875,4.0066184,78.599,78.563,11.4642]
[1770949430272,4.0066184,78.599,78.551,4.12297012]
[1770949430467,4.0066184,78.599,78.554,15.58847012]
[1770949430678,4.0066184,78.599,78.555,4.12297012]
[1770949431274,4.0066184,78.599,78.561,11.4646]
[1770949431473,4.0066184,78.599,78.562,4.12297012]
[1770949431683,7.32138713,78.61,78.562,4.12297012]
[1770949431874,4.0066184,78.61,78.562,4.12297012]
[1770949432173,4.0066184,78.622,78.58,3.31476873]
[1770949432380,3.31476873,78.63,78.581,4.12297012]
[1770949432573,4.0066184,78.629,78.581,4.12297012]
[1770949433781,4.0066184,78.629,78.583,4.12297012]
[1770949434180,7.32138713,78.64,78.583,4.12297012]
[1770949434485,7.32138713,78.64,78.591,4.12297012]
[1770949434486,4.0066184,78.639,78.591,4.12297012]
[1770949435479,4.0066184,78.629,78.592,11.4601]
[1770949435877,4.0066184,78.629,78.593,4.12297012]
[1770949436076,4.0066184,78.629,78.594,15.58267012]
[1770949436977,4.0066184,78.629,78.558,101.54]
[1770949436978,7.32138713,78.65,78.601,4.12297012]
[1770949437282,4.0066184,78.649,78.601,4.12297012]
[1770949437784,4.0066184,78.649,78.604,4.12297012]
[1770949439985,4.0066184,78.646,78.604,4.12297012]
[1770949444087,4.0066184,78.646,78.607,3.90425207]
[1770949444282,4.08892256,78.659,78.611,3.90425207]
[1770949445788,4.08892256,78.659,78.614,15.36115207]
[1770949445988,4.08892256,78.659,78.615,3.90425207]
[1770949447484,4.08892256,78.659,78.619,3.90425207]
[1770949448384,4.08892256,78.659,78.621,3.90425207]
[1770949449792,4.08892256,78.659,78.625,15.35955207]
[1770949451485,4.08892256,78.67,78.628,3.90425207]
[1770949452786,4.08892256,78.67,78.63,3.90425207]
[1770949452989,4.08892256,78.668,78.621,3.90425207]
[1770949453786,4.08892256,78.666,78.622,3.90425207]
[1770949454788,4.08892256,78.666,78.624,11.4553]
[1770949455490,14.76506873,78.66,78.615,11.4567]
[1770949455689,4.08892256,78.649,78.615,11.4567]
[1770949456293,4.08892256,78.649,78.615,15.36095207]
[1770949456494,4.08892256,78.649,78.616,3.90425207]
[1770949457295,4.08892256,78.649,78.618,3.90425207]
[1770949457691,4.08892256,78.649,78.588,15.69025202]
[1770949457692,4.08892256,78.669,78.621,3.90425207]
[1770949458490,4.08892256,78.669,78.626,3.90425207]
[1770949459698,4.08892256,78.669,78.63,11.4545]